fUSD/lending_fUSD_20260227
["ID","MTS","AMOUNT","RATE_DAILY","PERIOD"]
[406840026,1772219441382,-1000.0,0.00014247,2]
[406840027,1772219441391,-1000.0,0.00014247,2]
[406840028,1772219441400,-1000.0,0.00014247,2]
[406840029,1772219441409,-1000.0,0.00014247,2]
[406840030,1772219441418,-1000.0,0.00014247,2]
[406840031,1772219441427,-457.86,0.00014384,2]
[406840032,1772219441436,-552.35590586,0.0001445,2]
[406840033,1772219441445,-23432.64122165,0.00014452,2]
[406840034,1772219441454,-5574.11406334,0.00014458,2]
[406840035,1772219441463,-50000.0,0.0001461,2]
[406840036,1772219441473,-1169.0,0.00014718,2]
[406840037,1772219441483,-929.49570382,0.00014795,2]
[406840038,1772219441492,-1500.0,0.00014795,2]
[406840039,1772219441502,-1500.0,0.00014795,2]
[406840040,1772219441510,-1647.84261484,0.00014795,2]
[406840041,1772219441519,-1500.0,0.00014795,2]
[406840042,1772219441529,-1500.0,0.00014795,2]
[406840043,1772219441538,-1500.0,0.00014795,2]
[406840044,1772219441547,-508.10480934,0.00014795,2]
[406840045,1772219441557,-1500.0,0.00014795,2]
[406840046,1772219441566,-1500.0,0.00014795,2]
[406840047,1772219441575,-1500.0,0.00014795,2]
[406840048,1772219441584,-1500.0,0.00014795,2]
[406840049,1772219441593,-1500.0,0.00014795,2]
[406840050,1772219441604,-1644.44196517,0.00014795,2]
[406840051,1772219441615,-1500.0,0.00014795,2]
[406840052,1772219441624,-1500.0,0.00014795,2]
[406840053,1772219441633,-1500.0,0.00014795,2]
[406840054,1772219441644,-1500.0,0.00014795,2]
[406840055,1772219441653,-1500.0,0.00014795,2]
[406840056,1772219441662,-1500.0,0.00014795,2]
[406840057,1772219441671,-1500.0,0.00014795,2]
[406840058,1772219441680,-1500.0,0.00014795,2]
[406840059,1772219441690,-1241.17434169,0.00014795,2]
[406840060,1772219441699,-1500.0,0.00014795,2]
[406840061,1772219441709,-730.407018,0.0001482,7]
[406840062,1772219441724,-510.0,0.0001489,2]
[406840063,1772219441734,-169.39470199,0.000149,2]
[406840064,1772219441743,-169.39470198,0.000149,2]
[406840065,1772219441752,-169.39470198,0.000149,2]
[406840066,1772219441762,-2918.3115405,0.00014933,2]
[406840067,1772219441771,-250.0,0.00015,2]
[406840068,1772219441781,-3420.874504,0.0001501,7]
[406840069,1772219441792,-457.86,0.00015068,2]
[406840070,1772219441802,-462.08,0.00015136,2]
[406840071,1772219441812,-563.9784206,0.00015342,2]
[406840072,1772219441821,-500.0,0.00015342,2]
[406840073,1772219441830,-500.0,0.00015342,2]
[406840074,1772219441840,-715.41849404,0.00015342,2]
[406840075,1772219441851,-749.1830332,0.00015342,2]
[406840076,1772219441860,-511.45189164,0.00015342,2]
[406840077,1772219441870,-2000.0,0.00015342,2]
[406840078,1772219441879,-2000.0,0.00015342,2]
[406840079,1772219441889,-2000.0,0.00015342,2]
[406840080,1772219441898,-1000.0,0.00015342,2]
[406840081,1772219441907,-2000.0,0.00015342,2]
[406840082,1772219441916,-1516.10263761,0.00015342,2]
[406840083,1772219441925,-703.52805437,0.00015342,2]
[406840084,1772219441935,-597.09510233,0.00015342,2]
[406840085,1772219441944,-1201.13446519,0.00015342,2]
[406840086,1772219441953,-2000.0,0.00015342,2]
[406840087,1772219441963,-2000.0,0.00015342,2]
[406840088,1772219441972,-2000.0,0.00015342,2]
[406840089,1772219441982,-1614.542994,0.00015342,2]
[406840090,1772219441991,-538.67533251,0.00015342,2]
[406840091,1772219442000,-2000.0,0.00015342,2]
[406840092,1772219442009,-1505.60534384,0.00015342,2]
[406840093,1772219442018,-462.08,0.0001541,2]
[406840094,1772219442028,-1000.0,0.00015582,7]
[406840095,1772219442039,-23432.64122165,0.00015601,2]
[406840096,1772219442048,-550.5,0.00015684,2]
[406840097,1772219442059,-457.86,0.00015753,2]
[406840098,1772219442069,-2528.27485084,0.0001589,2]
[406840099,1772219442078,-2500.0,0.0001589,2]
[406840100,1772219442087,-1208.62062,0.0001589,2]
[406840101,1772219442096,-2500.0,0.0001589,2]
[406840102,1772219442105,-1023.31974037,0.0001589,2]
[406840103,1772219442114,-2275.06944665,0.0001589,2]
[406840104,1772219442124,-2500.0,0.0001589,2]
[406840105,1772219442133,-1505.53161927,0.0001589,2]
[406840106,1772219442142,-150.0,0.000159,2]
[406840107,1772219442151,-150.0,0.000159,2]
[406840108,1772219442161,-150.0,0.000159,2]
[406840109,1772219442170,-5000.0,0.0001596,2]
[406840110,1772219442179,-9999.99,0.00016116,2]
[406840111,1772219442188,-150.0,0.00016157,2]
[406840112,1772219442198,-58314.76884198,0.000162,5]
[406840113,1772219442207,-2918.3115405,0.00016416,2]
[406840114,1772219442216,-252.3,0.00016438,2]
[406840115,1772219442226,-266.68789925,0.00016438,2]
[406840116,1772219442235,-457.86,0.00016438,2]
[406840117,1772219442244,-1984.08045004,0.00016438,2]
[406840118,1772219442253,-2291.80881226,0.00016438,2]
[406840119,1772219442262,-3000.0,0.00016438,2]
[406840120,1772219442270,-160.0,0.00016505,2]
[406840121,1772219442279,-174.00015664,0.0001651,2]
[406840122,1772219442288,-23432.64122165,0.00016751,2]
[406840123,1772219442298,-3500.0,0.00016986,2]
[406840124,1772219442307,-300.0,0.00017,2]
[406840125,1772219442316,-32158.97035652,0.00017,2]
[406840126,1772219442325,-25604.0,0.00017177,2]
[406840127,1772219442334,-266.65,0.00017527,2]
[406840128,1772219442343,-4000.0,0.00017534,2]
[406840129,1772219442354,-168.0,0.0001754,2]
[406840130,1772219442363,-168.0,0.00017549,2]
[406840131,1772219442372,-2000.0,0.0001759,2]
[406840132,1772219442382,-7400.0,0.000176,6]
[406840133,1772219442391,-168.0,0.00017618,2]
[406840135,1772219442400,-168.0,0.00017675,2]
[406840136,1772219442409,-2000.0,0.0001769,2]
[406840137,1772219442419,-1400.0,0.000177,6]
[406840138,1772219442428,-150.0,0.00017711,7]
[406840139,1772219442437,-466.17,0.00017721,2]
[406840140,1772219442446,-2000.0,0.0001779,2]
[406840141,1772219442455,-1400.0,0.000178,6]
[406840142,1772219442465,-5000.0,0.00017808,2]
[406840143,1772219442474,-168.0,0.00017856,2]
[406840144,1772219442483,-1075.08672241,0.0001789,2]
[406840145,1772219442493,-3056.07683188,0.000179,2]
[406840146,1772219442502,-19420.49031765,0.000179,3]
[406840147,1772219442511,-1400.0,0.000179,6]
[406840148,1772219442521,-23432.64122165,0.000179,2]
[406840149,1772219442530,-5574.11406334,0.000179,2]
[406840150,1772219442539,-552.35590586,0.000179,2]
[406840151,1772219442548,-2918.3115405,0.000179,2]
[406840152,1772219442558,-1699.12989508,0.0001799,2]
[406840153,1772219442567,-1699.12989508,0.0001799,2]
[406840155,1772219442577,-151.0,0.00017997,2]
[406840156,1772219442586,-300.0,0.00017999,2]
[406840157,1772219442595,-511.11,0.00017999,2]
[406840158,1772219442605,-500.0,0.00017999,2]
[406840159,1772219442614,-7324696.06101399,0.00018,2]
[406840160,1772219442623,-71224.12935829,0.00018,2]
[406840163,1772219442779,-25598.18354248,0.00018,2]
[406840164,1772219442790,-1748382.02638993,0.00018,2]
[406840165,1772219442801,-3565.18647994,0.00018,2]
[406840166,1772219442813,-12261.14410848,0.00018,2]
[406840167,1772219442824,-269019.34935834,0.00018,2]
[406840168,1772219442835,-327.105,0.00018,2]
[406840169,1772219442846,-542.688,0.00018,2]
[406840170,1772219442857,-492.65507974,0.00018,2]
[406840171,1772219442875,-281.750103,8.219e-05,2]
[406840172,1772219442884,-98.55937052,0.00018,2]
[406840173,1772219442895,-428.30336578,0.00018,2]
[406840174,1772219442914,-134256.50834872,0.00018,2]
[406840175,1772219442925,-883.15138334,0.00018,2]
[406840176,1772219443074,-2728.71742985,7.753e-05,2]
[406840177,1772219443083,-3622.00038315,7.753e-05,2]
[406840178,1772219443095,-5057.64024163,7.753e-05,2]
[406840179,1772219443105,-13511.49131623,7.753e-05,2]
[406840180,1772219443114,-425.09831696,7.753e-05,2]
[406840181,1772219443123,-352.187629,8.892e-05,2]
[406840182,1772219443132,-422.625155,0.00011115,2]
[406840183,1772219443141,-352.187629,0.0001482,7]
[406840184,1772219443150,-47572.35450161,0.00018,2]
[406840185,1772219443161,-2170.86881757,0.00018,2]
[406840186,1772219443172,-290.0,0.00018,2]
[406840187,1772219443183,-12445.41704332,0.00018,2]
[406840188,1772219443194,-30547.34578269,0.00018,2]
[406840189,1772219443205,-261.999998,0.00018,2]
[406840190,1772219443219,-90984.66777501,0.00018,2]
[406840205,1772220003827,214.0,7.552e-05,2]
[406840206,1772220051353,9786.01,7.452e-05,2]
[406840207,1772220051379,10000.01,7.452e-05,2]
[406840208,1772220051400,10000.01,7.452e-05,2]
[406840209,1772220051424,10000.01,7.452e-05,2]
[406840210,1772220051448,10000.01,7.452e-05,2]
[406840211,1772220051477,10000.01,7.452e-05,2]
[406840212,1772220051499,10000.01,7.452e-05,2]
[406840213,1772220051523,10000.01,7.452e-05,2]
[406840214,1772220051744,10000.01,7.452e-05,2]
[406840215,1772220051768,10000.01,7.452e-05,2]
[406840216,1772220073391,-151.0,7.449e-05,2]
[406840217,1772220073420,-300.0,7.451e-05,2]
[406840218,1772220073448,-300.0,7.451e-05,2]
[406840219,1772220073478,-250.0,7.451e-05,2]
[406840220,1772220073506,-2998.01,7.452e-05,2]
[406840221,1772220073625,-2001.99,7.452e-05,2]
[406840222,1772220076962,-7998.02,7.452e-05,2]
[406840223,1772220079399,-10000.01,7.452e-05,2]
[406840224,1772220079504,-10000.01,7.452e-05,2]
[406840225,1772220079602,-10000.01,7.452e-05,2]
[406840226,1772220079720,-10000.01,7.452e-05,2]
[406840227,1772220079884,-10000.01,7.452e-05,2]
[406840229,1772220449508,200.0,6.8e-05,2]
[406840230,1772220451591,500.0,6.9e-05,2]
[406840231,1772220453729,800.0,7e-05,2]
[406840232,1772220456042,1100.0,8.9e-05,3]
[406840233,1772220457970,1400.0,9e-05,3]
[406840236,1772220526263,1852.42,7.083e-05,2]
[406840237,1772220604002,150.0,7.303e-05,7]
[406840241,1772220631434,-300.0,7.302e-05,2]
[406840242,1772220631444,-587.77170059,7.302e-05,2]
[406840243,1772220631542,-612.22829941,7.302e-05,2]
[406840244,1772220631552,-300.0,7.302e-05,2]
[406840245,1772220631561,-212.0,7.302e-05,2]
[406840246,1772220631570,-88.0,7.302e-05,2]
[406840247,1772220631582,-719.43,7.302e-05,2]
[406840248,1772220631591,-250.0,7.303e-05,2]
[406840249,1772220631600,-530.57,7.303e-05,2]
[406840264,1772220637533,-374.15950572,7.303e-05,2]
[406840265,1772220637546,-692.34049428,7.303e-05,2]
[406840266,1772220637557,-210.792,7.303e-05,2]
[406840267,1772220637570,-4987.22770661,7.303e-05,2]
[406840268,1772220637583,-151.0,7.349e-05,2]
[406840269,1772220637593,-150.0,7.351e-05,2]
[406840270,1772220637602,-3940.86593448,7.352e-05,2]
[406840271,1772220637612,-59067.77386463,7.352e-05,2]
[406840272,1772220637745,-2081.5790444,7.352e-05,2]
[406840317,1772220639712,-1305.86968,7.352e-05,2]
[406840318,1772220639767,-1245.62190013,7.352e-05,2]
[406840319,1772220639823,-34709.8782036,7.352e-05,2]
[406840326,1772220642593,-5315.1,7.352e-05,2]
[406840329,1772220642646,-35257.76374222,7.352e-05,2]
[406840330,1772220642703,-180687.56689237,7.352e-05,2]
[406840331,1772220642716,-1203.55824115,7.352e-05,2]
[406840332,1772220642729,-3079.08734681,7.352e-05,2]
[406840333,1772220642758,-4069.77402337,7.352e-05,2]
[406840344,1772220645407,-387.372,7.352e-05,2]
[406840345,1772220645498,-3812.27035631,7.352e-05,2]
[406840350,1772220697502,1500.892,7.205e-05,2]
[406840351,1772220697619,168.634,7.205e-05,2]
[406840352,1772220907590,-151.0,7.349e-05,2]
[406840353,1772220910856,151.0,7.349e-05,2]
[406840356,1772220983621,9547.01,7.261e-05,2]
[406840357,1772220983643,1812.71,7.261e-05,2]
[406840358,1772220992761,8187.3,7.252e-05,2]
[406840359,1772220992787,10000.01,7.252e-05,2]
[406840360,1772220992813,10000.01,7.252e-05,2]
[406840361,1772220992841,10000.01,7.252e-05,2]
[406840362,1772220992869,10000.01,7.252e-05,2]
[406840363,1772220992896,10000.01,7.252e-05,2]
[406840364,1772220992922,10000.01,7.252e-05,2]
[406840365,1772220992946,10000.01,7.252e-05,2]
[406840366,1772220992970,10000.01,7.252e-05,2]
[406840367,1772220992994,10000.01,7.252e-05,2]
[406840368,1772221005586,-7053.3326483,7.252e-05,2]
[406840369,1772221007995,-10000.01,7.252e-05,2]
[406840370,1772221008124,-10000.01,7.252e-05,2]
[406840371,1772221008262,-10000.01,7.252e-05,2]
[406840372,1772221008406,-10000.01,7.252e-05,2]
[406840373,1772221027501,965.43887015,7.1e-05,2]
[406840374,1772221027593,1884.16285729,7.1e-05,2]
[406840375,1772221042412,2150.40827256,7.242e-05,2]
[406840376,1772221042439,3865.92952291,7.242e-05,2]
[406840377,1772221151943,-300.0,7.25e-05,2]
[406840378,1772221151971,-150.0,7.25e-05,2]
[406840379,1772221151999,-300.0,7.25e-05,2]
[406840380,1772221152026,-3500.01,7.251e-05,2]
[406840381,1772221152081,-1499.99,7.251e-05,2]
[406840382,1772221152181,-10000.01,7.251e-05,2]
[406840383,1772221152323,-10000.01,7.251e-05,2]
[406840384,1772221152464,-10000.01,7.251e-05,2]
[406840385,1772221152614,-10000.01,7.251e-05,2]
[406840386,1772221152742,-10000.01,7.251e-05,2]
[406840387,1772221154783,-370.49408439,7.25e-05,2]
[406840388,1772221154817,-9259.02183122,7.251e-05,2]
[406840389,1772221157981,-10000.01,7.251e-05,2]
[406840390,1772221158219,-10000.01,7.251e-05,2]
[406840391,1772221160803,-10000.01,7.251e-05,2]
[406840392,1772221163827,-2549.15959248,7.251e-05,2]
[406840393,1772221163852,-4901.69081504,7.251e-05,2]
[406840394,1772221163954,-500.0,7.251e-05,2]
[406840395,1772221163981,-500.0,7.251e-05,2]
[406840396,1772221164011,-913.09228898,7.251e-05,2]
[406840397,1772221164038,-500.0,7.251e-05,2]
[406840398,1772221164065,-500.0,7.251e-05,2]
[406840399,1772221164096,-913.09228898,7.251e-05,2]
[406840400,1772221164124,-505.70236502,7.251e-05,2]
[406840401,1772221164152,-417.62442224,7.251e-05,2]
[406840402,1772221164180,-0.98726956,7.251e-05,2]
[406840403,1772221164309,-499.01273044,7.251e-05,2]
[406840404,1772221167732,197.47,7.2e-05,2]
[406840405,1772221184430,-701.67367054,7.243e-05,2]
[406840406,1772221184457,-500.0,7.251e-05,2]
[406840407,1772221184497,-913.09228898,7.251e-05,2]
[406840408,1772221184535,-913.09228898,7.251e-05,2]
[406840409,1772221184563,-500.0,7.251e-05,2]
[406840410,1772221184592,-500.0,7.251e-05,2]
[406840411,1772221184620,-500.0,7.251e-05,2]
[406840412,1772221184652,-31.20121402,7.251e-05,2]
[406840413,1772221184778,-881.89107496,7.251e-05,2]
[406840414,1772221184813,-913.09228898,7.251e-05,2]
[406840415,1772221184842,-500.0,7.251e-05,2]
[406840416,1772221184874,-913.09228898,7.251e-05,2]
[406840417,1772221184901,-500.0,7.251e-05,2]
[406840418,1772221184928,-161.92412969,7.251e-05,2]
[406840419,1772221184961,-913.09228898,7.251e-05,2]
[406840420,1772221184998,-913.09228898,7.251e-05,2]
[406840421,1772221185027,-164.3964458,7.251e-05,2]
[406840422,1772221185146,-42.63053718,7.251e-05,2]
[406840423,1772221186794,723.62738257,7.1e-05,2]
[406840424,1772221186889,-913.09228898,7.251e-05,2]
[406840425,1772221186919,-913.09228898,7.251e-05,2]
[406840426,1772221186954,-913.09228898,7.251e-05,2]
[406840427,1772221186985,-913.09228898,7.251e-05,2]
[406840428,1772221187016,-913.09228898,7.251e-05,2]
[406840429,1772221187123,212.98309452,7.1e-05,2]
[406840430,1772221187146,1156.92846133,7.1e-05,2]
[406840431,1772221187184,-869.0871102,7.251e-05,2]
[406840432,1772221189945,-44.00517878,7.251e-05,2]
[406840433,1772221189977,-913.09228898,7.251e-05,2]
[406840434,1772221190008,-913.09228898,7.251e-05,2]
[406840435,1772221190041,-913.09228898,7.251e-05,2]
[406840436,1772221190073,-913.09228898,7.251e-05,2]
[406840437,1772221190105,-913.09228898,7.251e-05,2]
[406840438,1772221190203,-781.07675264,7.251e-05,2]
[406840439,1772221190242,-132.01553634,7.251e-05,2]
[406840440,1772221190278,-913.09228898,7.251e-05,2]
[406840441,1772221190310,-913.09228898,7.251e-05,2]
[406840442,1772221190342,-913.09228898,7.251e-05,2]
[406840443,1772221190375,-913.09228898,7.251e-05,2]
[406840444,1772221190409,-913.09228898,7.251e-05,2]
[406840445,1772221190514,-605.05603752,7.251e-05,2]
[406840446,1772221192936,-308.03625146,7.251e-05,2]
[406840447,1772221192967,-913.09228898,7.251e-05,2]
[406840448,1772221192996,-913.09228898,7.251e-05,2]
[406840449,1772221193026,-913.09228898,7.251e-05,2]
[406840450,1772221193055,-913.09228898,7.251e-05,2]
[406840451,1772221193086,-913.09228898,7.251e-05,2]
[406840452,1772221193180,-253.01460728,7.251e-05,2]
[406840453,1772221205218,3843.08153867,7.213e-05,2]
[406840454,1772221205240,949.41846133,7.213e-05,2]
[406840455,1772221240157,1500.0,7.108e-05,2]
[406840456,1772221297550,1489.221,7.107e-05,2]
[406840457,1772221297604,185.767,7.107e-05,2]
[406840458,1772221324825,-5000.0,7.251e-05,2]
[406840459,1772221324851,-212.0,7.251e-05,2]
[406840460,1772221324882,-150.0,7.251e-05,2]
[406840461,1772221324908,-300.0,7.251e-05,2]
[406840462,1772221324936,-193.0,7.251e-05,2]
[406840463,1772221324962,-3163.72596784,7.252e-05,2]
[406840464,1772221340713,-618.37261043,7.251e-05,2]
[406840465,1772221340745,-618.37261043,7.251e-05,2]
[406840466,1772221340774,-618.37261043,7.251e-05,2]
[406840467,1772221340804,-618.37261043,7.251e-05,2]
[406840468,1772221340836,-618.37261043,7.251e-05,2]
[406840469,1772221340866,-618.37261043,7.251e-05,2]
[406840470,1772221340902,-618.37261043,7.251e-05,2]
[406840471,1772221340936,-618.37261043,7.251e-05,2]
[406840472,1772221340978,-618.37261043,7.251e-05,2]
[406840473,1772221341013,-618.37261043,7.251e-05,2]
[406840474,1772221341045,-618.37261043,7.251e-05,2]
[406840475,1772221341076,-618.37261043,7.251e-05,2]
[406840476,1772221341112,-618.37261043,7.251e-05,2]
[406840477,1772221341143,-618.37261043,7.251e-05,2]
[406840478,1772221341174,-618.37261043,7.251e-05,2]
[406840479,1772221341205,-618.37261043,7.251e-05,2]
[406840480,1772221341236,-618.37261043,7.251e-05,2]
[406840481,1772221341270,-618.37261043,7.251e-05,2]
[406840482,1772221341300,-618.37261043,7.251e-05,2]
[406840483,1772221341328,-618.37261043,7.251e-05,2]
[406840484,1772221341360,-618.37261043,7.251e-05,2]
[406840485,1772221341390,-618.37261043,7.251e-05,2]
[406840486,1772221341434,-618.37261043,7.251e-05,2]
[406840487,1772221341466,-618.37261043,7.251e-05,2]
[406840488,1772221350996,-618.37261043,7.251e-05,2]
[406840489,1772221351026,-618.37261043,7.251e-05,2]
[406840490,1772221351056,-618.37261043,7.251e-05,2]
[406840491,1772221351086,-618.37261043,7.251e-05,2]
[406840492,1772221351262,-618.37261043,7.251e-05,2]
[406840493,1772221351293,-618.37261043,7.251e-05,2]
[406840494,1772221351322,-618.37261043,7.251e-05,2]
[406840495,1772221351351,-618.37261043,7.251e-05,2]
[406840496,1772221351441,-618.37261043,7.251e-05,2]
[406840497,1772221351471,-618.37261043,7.251e-05,2]
[406840498,1772221351501,-618.37261043,7.251e-05,2]
[406840499,1772221351532,-618.37261043,7.251e-05,2]
[406840500,1772221351662,-618.37261043,7.251e-05,2]
[406840501,1772221351695,-618.37261043,7.251e-05,2]
[406840502,1772221351727,-618.37261043,7.251e-05,2]
[406840503,1772221351758,-618.37261043,7.251e-05,2]
[406840504,1772221351887,-618.37261043,7.251e-05,2]
[406840505,1772221351916,-618.37261043,7.251e-05,2]
[406840506,1772221351944,-618.37261043,7.251e-05,2]
[406840507,1772221351973,-618.37261043,7.251e-05,2]
[406840508,1772221352059,-618.37261043,7.251e-05,2]
[406840509,1772221352088,-618.37261043,7.251e-05,2]
[406840510,1772221352119,-618.37261043,7.251e-05,2]
[406840511,1772221352148,-618.37261043,7.251e-05,2]
[406840512,1772221352273,-618.37261043,7.251e-05,2]
[406840513,1772221352303,-618.37261043,7.251e-05,2]
[406840514,1772221352335,-618.37261043,7.251e-05,2]
[406840515,1772221352363,-618.37261043,7.251e-05,2]
[406840516,1772221352489,-618.37261043,7.251e-05,2]
[406840517,1772221355358,-5000.0,7.252e-05,2]
[406840518,1772221355487,-7352.94276368,7.252e-05,2]
[406840519,1772221361530,869.58648342,7.251e-05,2]
[406840520,1772221361562,869.58648342,7.251e-05,2]
[406840521,1772221361600,869.58648342,7.251e-05,2]
[406840522,1772221361655,869.58648342,7.251e-05,2]
[406840523,1772221361702,284.91884546,7.251e-05,2]
[406840524,1772221361725,584.66763796,7.251e-05,2]
[406840525,1772221361756,869.58648342,7.251e-05,2]
[406840526,1772221361787,869.58648342,7.251e-05,2]
[406840527,1772221361820,869.58648342,7.251e-05,2]
[406840528,1772221361855,869.58648342,7.251e-05,2]
[406840529,1772221361886,869.58648342,7.251e-05,2]
[406840530,1772221361918,67.40994494,7.251e-05,2]
[406840531,1772221361942,802.17653848,7.251e-05,2]
[406840532,1772221361978,869.58648342,7.251e-05,2]
[406840533,1772221362009,869.58648342,7.251e-05,2]
[406840534,1772221362045,869.58648342,7.251e-05,2]
[406840535,1772221362080,869.58648342,7.251e-05,2]
[406840536,1772221362113,719.48752784,7.251e-05,2]
[406840537,1772221362137,150.09895558,7.251e-05,2]
[406840538,1772221362168,869.58648342,7.251e-05,2]
[406840539,1772221362203,869.58648342,7.251e-05,2]
[406840540,1772221362242,869.58648342,7.251e-05,2]
[406840541,1772221362298,869.58648342,7.251e-05,2]
[406840542,1772221362333,869.58648342,7.251e-05,2]
[406840543,1772221362369,501.97862732,7.251e-05,2]
[406840544,1772221362396,367.6078561,7.251e-05,2]
[406840545,1772221362435,869.58648342,7.251e-05,2]
[406840546,1772221362468,869.58648342,7.251e-05,2]
[406840547,1772221362506,869.58648342,7.251e-05,2]
[406840548,1772221362540,869.58648342,7.251e-05,2]
[406840549,1772221362574,869.58648342,7.251e-05,2]
[406840550,1772221362628,284.4697268,7.251e-05,2]
[406840551,1772221362656,585.11675662,7.251e-05,2]
[406840552,1772221368350,-1898.43581883,7.252e-05,2]
[406840553,1772221368378,-5000.01,7.252e-05,2]
[406840554,1772221371933,-5000.01,7.252e-05,2]
[406840555,1772221372060,-5000.01,7.252e-05,2]
[406840556,1772221372174,-5000.01,7.252e-05,2]
[406840557,1772221372291,-5000.01,7.252e-05,2]
[406840558,1772221372409,-5000.01,7.252e-05,2]
[406840559,1772221372561,-5000.01,7.252e-05,2]
[406840560,1772221372688,-5000.01,7.252e-05,2]
[406840561,1772221372811,-5000.01,7.252e-05,2]
[406840562,1772221372929,-5000.01,7.252e-05,2]
[406840563,1772221373035,-5000.01,7.252e-05,2]
[406840564,1772221375081,-5000.01,7.252e-05,2]
[406840565,1772221375304,-5000.01,7.252e-05,2]
[406840566,1772221375431,-5000.01,7.252e-05,2]
[406840567,1772221375549,-5000.01,7.252e-05,2]
[406840568,1772221375682,-5000.01,7.252e-05,2]
[406840569,1772221375800,-5000.01,7.252e-05,2]
[406840570,1772221375932,-5000.01,7.252e-05,2]
[406840571,1772221381139,-5000.01,7.252e-05,2]
[406840572,1772221381157,-5000.01,7.252e-05,2]
[406840573,1772221419386,-300.0,7.251e-05,2]
[406840574,1772221419414,-1131.98391739,7.251e-05,2]
[406840575,1772221419443,-184.54572167,7.251e-05,2]
[406840576,1772221419521,-26766.94072188,7.252e-05,2]
[406840577,1772221434223,-686.09493789,7.251e-05,2]
[406840578,1772221434253,-686.09493789,7.251e-05,2]
[406840579,1772221434283,-686.09493789,7.251e-05,2]
[406840580,1772221434317,-686.09493789,7.251e-05,2]
[406840581,1772221434353,-686.09493789,7.251e-05,2]
[406840582,1772221434385,-686.09493789,7.251e-05,2]
[406840583,1772221434414,-686.09493789,7.251e-05,2]
[406840584,1772221434443,-686.09493789,7.251e-05,2]
[406840585,1772221434472,-686.09493789,7.251e-05,2]
[406840586,1772221434502,-686.09493789,7.251e-05,2]
[406840587,1772221434531,-686.09493789,7.251e-05,2]
[406840588,1772221434561,-686.09493789,7.251e-05,2]
[406840589,1772221434589,-686.09493789,7.251e-05,2]
[406840590,1772221434617,-686.09493789,7.251e-05,2]
[406840591,1772221434646,-686.09493789,7.251e-05,2]
[406840592,1772221434677,-686.09493789,7.251e-05,2]
[406840593,1772221434705,-686.09493789,7.251e-05,2]
[406840594,1772221434734,-686.09493789,7.251e-05,2]
[406840595,1772221434764,-686.09493789,7.251e-05,2]
[406840596,1772221434792,-686.09493789,7.251e-05,2]
[406840597,1772221434822,-686.09493789,7.251e-05,2]
[406840598,1772221434851,-497.91767073,7.251e-05,2]
[406840599,1772221435161,-188.17726716,7.251e-05,2]
[406840600,1772221476139,10000.01,7.152e-05,2]
[406840601,1772221476162,10000.01,7.152e-05,2]
[406840602,1772221476185,5000.01,7.152e-05,2]
[406840603,1772221476209,5000.01,7.152e-05,2]
[406840604,1772221476232,5000.01,7.152e-05,2]
[406840605,1772221482563,-5000.01,7.152e-05,2]
[406840606,1772221482688,-5000.01,7.152e-05,2]
[406840607,1772221482820,-5000.01,7.152e-05,2]
[406840608,1772221526668,-300.0,7.151e-05,2]
[406840609,1772221526695,-1200.0,7.151e-05,2]
[406840610,1772221526725,-150.0,7.151e-05,2]
[406840611,1772221526754,-300.0,7.151e-05,2]
[406840612,1772221526781,-300.0,7.151e-05,2]
[406840613,1772221540087,-16436.0,7.152e-05,2]
[406840614,1772221564505,-20000.0,7.152e-05,2]
[406840616,1772221600885,-10000.01,7.124e-05,2]
[406840617,1772221606920,-67.0,7.124e-05,2]
[406840618,1772221625158,-300.0,7.151e-05,2]
[406840619,1772221629254,151.0,7.149e-05,2]
[406840620,1772221629702,151.0,7.149e-05,2]
[406840621,1772221654740,3606.01,7.142e-05,2]
[406840622,1772221659584,-330.99099189,7.151e-05,2]
[406840623,1772221659624,-550.93754284,7.151e-05,2]
[406840624,1772221659656,-550.93754284,7.151e-05,2]
[406840625,1772221659686,-550.93754284,7.151e-05,2]
[406840626,1772221659716,-550.93754284,7.151e-05,2]
[406840627,1772221659744,-550.93754284,7.151e-05,2]
[406840628,1772221659772,-550.93754284,7.151e-05,2]
[406840629,1772221659799,-550.93754284,7.151e-05,2]
[406840630,1772221659833,-550.93754284,7.151e-05,2]
[406840631,1772221659862,-550.93754284,7.151e-05,2]
[406840632,1772221659890,-550.93754284,7.151e-05,2]